[Event "Titled Tuesday Blitz July 05 Early 2022"]
[White "Zhou, Liran"]
[Black "Cruz Mendez, Jean Marco"]
[WhiteFideId "30931967"]
[BlackFideId "3526402"]
[WhiteElo "2784"]
[BlackElo "2064"]
[Result "0-1"]
[Round "10"]
[TimeControl "180+1"]
[Date "2022.07.05"]
[WhiteClock "0:00:04"]
[BlackClock "0:00:22"]

1. e4 {[%clk 0:02:54]}  e5 {[%clk 0:02:56]} 2. Nf3 {[%clk 0:02:54]}  Nf6 {[%clk 0:02:55]} 3. d4 {[%clk 0:02:53]}  Nxe4 {[%clk 0:02:48]} 4. Bd3 {[%clk 0:02:53]}  Nc6 {[%clk 0:02:43]} 5. Bxe4 {[%clk 0:02:46]}  d5 {[%clk 0:02:43]} 6. Nxe5 {[%clk 0:02:47]}  dxe4 {[%clk 0:02:31]} 7. Nxc6 {[%clk 0:02:44]}  bxc6 {[%clk 0:02:32]} 8. O-O {[%clk 0:02:41]}  Be7 {[%clk 0:02:13]} 9. Nc3 {[%clk 0:02:09]}  f5 {[%clk 0:02:11]} 10. Bf4 {[%clk 0:02:10]}  O-O {[%clk 0:02:04]} 11. Qd2 {[%clk 0:01:56]}  Bd6 {[%clk 0:01:57]} 12. Rad1 {[%clk 0:01:50]}  Be6 {[%clk 0:01:47]} 13. Rfe1 {[%clk 0:01:47]}  Bf7 {[%clk 0:01:44]} 14. Qe3 {[%clk 0:01:39]}  Bh5 {[%clk 0:01:38]} 15. Rd2 {[%clk 0:01:34]}  Rb8 {[%clk 0:01:32]} 16. b3 {[%clk 0:01:21]}  Qf6 {[%clk 0:01:30]} 17. Qg3 {[%clk 0:01:19]}  Bxf4 {[%clk 0:01:26]} 18. Qxf4 {[%clk 0:01:20]}  Rf7 {[%clk 0:01:19]} 19. Na4 {[%clk 0:00:55]}  Re8 {[%clk 0:01:14]} 20. d5 {[%clk 0:00:41]}  g5 {[%clk 0:01:02]} 21. Qe3 {[%clk 0:00:41]}  f4 {[%clk 0:01:00]} 22. Qd4 {[%clk 0:00:41]}  Qf5 {[%clk 0:00:57]} 23. Nc3 {[%clk 0:00:28]}  e3 {[%clk 0:00:46]} 24. fxe3 {[%clk 0:00:24]}  fxe3 {[%clk 0:00:47]} 25. g4 {[%clk 0:00:16]}  Bxg4 {[%clk 0:00:39]} 26. Rg2 {[%clk 0:00:09]}  Bh3 {[%clk 0:00:29]} 27. Qd3 {[%clk 0:00:04]}  Qf2+ {[%clk 0:00:22]} 0-1


[Site "https://www.chess.com"]

[Event "Titled Tuesday Blitz July 05 Early 2022"]
[White "Al-Tarboush, Ward"]
[Black "Ladopoulos, Dimitrios"]
[WhiteFideId "7601450"]
[BlackFideId "4239580"]
[WhiteElo "2231"]
[BlackElo "2195"]
[Result "0-1"]
[Round "11"]
[TimeControl "180+1"]
[Date "2022.07.05"]
[WhiteClock "0:00:55"]
[BlackClock "0:01:39"]

1. e4 {[%clk 0:02:54]}  c5 {[%clk 0:02:59]} 2. Nf3 {[%clk 0:02:54]}  e6 {[%clk 0:02:59]} 3. d4 {[%clk 0:02:54]}  cxd4 {[%clk 0:03:00]} 4. Nxd4 {[%clk 0:02:55]}  Nf6 {[%clk 0:03:01]} 5. Nc3 {[%clk 0:02:50]}  d6 {[%clk 0:03:01]} 6. g4 {[%clk 0:02:47]}  h6 {[%clk 0:03:01]} 7. Bg2 {[%clk 0:02:32]}  a6 {[%clk 0:03:00]} 8. h4 {[%clk 0:02:31]}  Nc6 {[%clk 0:02:41]} 9. g5 {[%clk 0:02:24]}  hxg5 {[%clk 0:02:32]} 10. hxg5 {[%clk 0:02:25]}  Rxh1+ {[%clk 0:02:32]} 11. Bxh1 {[%clk 0:02:26]}  Nd7 {[%clk 0:02:26]} 12. g6 {[%clk 0:02:23]}  Qh4 {[%clk 0:02:21]} 13. gxf7+ {[%clk 0:02:22]}  Kxf7 {[%clk 0:02:22]} 14. Qf3+ {[%clk 0:02:19]}  Nf6 {[%clk 0:02:21]} 15. Nxc6 {[%clk 0:02:16]}  bxc6 {[%clk 0:02:21]} 16. e5 {[%clk 0:02:11]}  dxe5 {[%clk 0:02:15]} 17. Qxc6 {[%clk 0:02:11]}  Ra7 {[%clk 0:02:01]} 18. Be3 {[%clk 0:02:10]}  Rd7 {[%clk 0:01:58]} 19. Qg2 {[%clk 0:01:42]}  Bb7 {[%clk 0:01:54]} 20. Qxb7 {[%clk 0:01:42]}  Rxb7 {[%clk 0:01:54]} 21. Bxb7 {[%clk 0:01:42]}  Qb4 {[%clk 0:01:52]} 22. O-O-O {[%clk 0:01:31]}  Qxb7 {[%clk 0:01:51]} 23. a4 {[%clk 0:01:22]}  Bb4 {[%clk 0:01:50]} 24. Na2 {[%clk 0:01:19]}  Be7 {[%clk 0:01:49]} 25. c3 {[%clk 0:01:15]}  Qb3 {[%clk 0:01:48]} 26. Nb4 {[%clk 0:01:12]}  Bxb4 {[%clk 0:01:48]} 27. cxb4 {[%clk 0:01:12]}  Qxa4 {[%clk 0:01:46]} 28. Bc5 {[%clk 0:01:12]}  Nd5 {[%clk 0:01:45]} 29. Rd3 {[%clk 0:01:10]}  e4 {[%clk 0:01:44]} 30. Ra3 {[%clk 0:01:09]}  Qb5 {[%clk 0:01:44]} 31. Ra5 {[%clk 0:01:10]}  Qe2 {[%clk 0:01:40]} 32. b5 {[%clk 0:01:03]}  Nf4 {[%clk 0:01:39]} 33. Ra2 {[%clk 0:00:55]}  Nd3+ {[%clk 0:01:39]} 0-1


[Site "https://www.chess.com"]

[Event "Titled Tuesday Blitz July 05 Early 2022"]
[White "Andreikin, Dmitry"]
[Black "Lazavik, Denis"]
[WhiteFideId "4158814"]
[BlackFideId "13515110"]
[WhiteElo "2736"]
[BlackElo "2437"]
[Result "1-0"]
[Round "11"]
[TimeControl "180+1"]
[Date "2022.07.05"]
[WhiteClock "0:00:10"]
[BlackClock "0:00:02"]

1. d4 {[%clk 0:03:00]}  d5 {[%clk 0:03:00]} 2. c4 {[%clk 0:03:01]}  c6 {[%clk 0:03:00]} 3. Nf3 {[%clk 0:03:01]}  Nf6 {[%clk 0:03:01]} 4. Qc2 {[%clk 0:03:02]}  dxc4 {[%clk 0:02:59]} 5. Qxc4 {[%clk 0:03:02]}  Bf5 {[%clk 0:03:00]} 6. g3 {[%clk 0:03:02]}  e6 {[%clk 0:03:00]} 7. Bg2 {[%clk 0:03:02]}  Be7 {[%clk 0:03:01]} 8. O-O {[%clk 0:03:03]}  O-O {[%clk 0:03:01]} 9. Nc3 {[%clk 0:03:03]}  Nbd7 {[%clk 0:03:02]} 10. e3 {[%clk 0:03:03]}  h6 {[%clk 0:02:59]} 11. Re1 {[%clk 0:02:58]}  Ne4 {[%clk 0:02:46]} 12. Nd2 {[%clk 0:02:54]}  Nxd2 {[%clk 0:02:45]} 13. Bxd2 {[%clk 0:02:55]}  Bh7 {[%clk 0:02:45]} 14. Rad1 {[%clk 0:02:52]}  Rc8 {[%clk 0:02:44]} 15. Bc1 {[%clk 0:02:45]}  Qa5 {[%clk 0:02:40]} 16. e4 {[%clk 0:02:38]}  Rfd8 {[%clk 0:02:40]} 17. a3 {[%clk 0:02:35]}  b5 {[%clk 0:02:36]} 18. Qe2 {[%clk 0:02:31]}  Qb6 {[%clk 0:02:19]} 19. Be3 {[%clk 0:02:29]}  a6 {[%clk 0:02:05]} 20. d5 {[%clk 0:02:26]}  c5 {[%clk 0:02:05]} 21. dxe6 {[%clk 0:02:23]}  Qxe6 {[%clk 0:02:02]} 22. f4 {[%clk 0:02:06]}  Nb6 {[%clk 0:01:52]} 23. f5 {[%clk 0:01:59]}  Qb3 {[%clk 0:01:49]} 24. g4 {[%clk 0:01:54]}  Bf6 {[%clk 0:01:16]} 25. Rxd8+ {[%clk 0:01:30]}  Rxd8 {[%clk 0:01:15]} 26. e5 {[%clk 0:01:30]}  Bxe5 {[%clk 0:01:10]} 27. Bxc5 {[%clk 0:01:31]}  Nc4 {[%clk 0:00:46]} 28. Bd5 {[%clk 0:01:30]}  Re8 {[%clk 0:00:46]} 29. Kg2 {[%clk 0:01:19]}  Qxb2 {[%clk 0:00:32]} 30. Qxb2 {[%clk 0:00:34]}  Nxb2 {[%clk 0:00:31]} 31. Bd4 {[%clk 0:00:28]}  Nd3 {[%clk 0:00:26]} 32. Re3 {[%clk 0:00:29]}  Nf4+ {[%clk 0:00:21]} 33. Kf3 {[%clk 0:00:29]}  Nxd5 {[%clk 0:00:21]} 34. Nxd5 {[%clk 0:00:30]}  f6 {[%clk 0:00:22]} 35. Nc7 {[%clk 0:00:26]}  Rc8 {[%clk 0:00:20]} 36. Bxe5 {[%clk 0:00:26]}  fxe5 {[%clk 0:00:21]} 37. Nxa6 {[%clk 0:00:27]}  g6 {[%clk 0:00:21]} 38. Ke4 {[%clk 0:00:21]}  gxf5+ {[%clk 0:00:20]} 39. gxf5 {[%clk 0:00:21]}  Kf7 {[%clk 0:00:20]} 40. Nb4 {[%clk 0:00:20]}  Rc5 {[%clk 0:00:10]} 41. Rf3 {[%clk 0:00:16]}  Bg8 {[%clk 0:00:09]} 42. Rh3 {[%clk 0:00:15]}  Kg7 {[%clk 0:00:09]} 43. Rg3+ {[%clk 0:00:15]}  Kf8 {[%clk 0:00:09]} 44. Rg6 {[%clk 0:00:15]}  h5 {[%clk 0:00:09]} 45. Rf6+ {[%clk 0:00:09]}  Ke7 {[%clk 0:00:08]} 46. Rc6 {[%clk 0:00:09]}  Rxc6 {[%clk 0:00:04]} 47. Nxc6+ {[%clk 0:00:10]}  Kf6 {[%clk 0:00:04]} 48. Nxe5 {[%clk 0:00:10]}  Ba2 {[%clk 0:00:04]} 49. Nd7+ {[%clk 0:00:10]}  Ke7 {[%clk 0:00:04]} 50. Nc5 {[%clk 0:00:09]}  Kf6 {[%clk 0:00:04]} 51. Kf4 {[%clk 0:00:09]}  Bb1 {[%clk 0:00:04]} 52. Ne4+ {[%clk 0:00:09]}  Kf7 {[%clk 0:00:04]} 53. Ke5 {[%clk 0:00:10]}  Bd3 {[%clk 0:00:04]} 54. h4 {[%clk 0:00:10]}  Ke7 {[%clk 0:00:03]} 55. Ng3 {[%clk 0:00:10]}  Kd7 {[%clk 0:00:02]} 56. Nxh5 {[%clk 0:00:10]} 1-0


[Site "https://www.chess.com"]

[Event "Titled Tuesday Blitz July 05 Early 2022"]
[White "Chernobay, Artem"]
[Black "Franca, Ricardo Bedin"]
[WhiteFideId "4167406"]
[BlackFideId "2107066"]
[WhiteElo "2473"]
[BlackElo "2551"]
[Result "1-0"]
[Round "11"]
[TimeControl "180+1"]
[Date "2022.07.05"]
[WhiteClock "0:01:19"]
[BlackClock "0:01:03"]

1. d4 {[%clk 0:02:41]}  Nf6 {[%clk 0:02:57]} 2. c4 {[%clk 0:02:41]}  c5 {[%clk 0:02:57]} 3. d5 {[%clk 0:02:41]}  e6 {[%clk 0:02:57]} 4. Nc3 {[%clk 0:02:40]}  exd5 {[%clk 0:02:54]} 5. cxd5 {[%clk 0:02:41]}  d6 {[%clk 0:02:54]} 6. e4 {[%clk 0:02:41]}  g6 {[%clk 0:02:52]} 7. f4 {[%clk 0:02:41]}  Bg7 {[%clk 0:02:52]} 8. Bb5+ {[%clk 0:02:42]}  Nfd7 {[%clk 0:02:52]} 9. Bd3 {[%clk 0:02:42]}  O-O {[%clk 0:02:51]} 10. Nf3 {[%clk 0:02:41]}  a6 {[%clk 0:02:46]} 11. a4 {[%clk 0:02:41]}  Qc7 {[%clk 0:02:29]} 12. O-O {[%clk 0:02:39]}  c4 {[%clk 0:02:29]} 13. Bc2 {[%clk 0:02:33]}  Nb6 {[%clk 0:01:57]} 14. f5 {[%clk 0:02:27]}  Bd7 {[%clk 0:01:52]} 15. Qe1 {[%clk 0:02:06]}  Be8 {[%clk 0:01:41]} 16. Qh4 {[%clk 0:01:56]}  N8d7 {[%clk 0:01:41]} 17. Bh6 {[%clk 0:01:49]}  Nf6 {[%clk 0:01:31]} 18. Ng5 {[%clk 0:01:33]}  Nbd7 {[%clk 0:01:15]} 19. fxg6 {[%clk 0:01:26]}  fxg6 {[%clk 0:01:03]} 20. Bxg7 {[%clk 0:01:24]}  Qb6+ {[%clk 0:01:02]} 21. Kh1 {[%clk 0:01:20]}  Kxg7 {[%clk 0:01:03]} 22. Ne6+ {[%clk 0:01:19]} 1-0


[Site "https://www.chess.com"]

[Event "Titled Tuesday Blitz July 05 Early 2022"]
[White "Cruz Mendez, Jean Marco"]
[Black "Hansen, Eric"]
[WhiteFideId "3526402"]
[BlackFideId "2606771"]
[WhiteElo "2064"]
[BlackElo "2568"]
[Result "0-1"]
[Round "11"]
[TimeControl "180+1"]
[Date "2022.07.05"]
[WhiteClock "0:00:03"]
[BlackClock "0:01:36"]

1. e4 {[%clk 0:03:00]}  c5 {[%clk 0:03:00]} 2. Nf3 {[%clk 0:03:00]}  e6 {[%clk 0:03:00]} 3. d4 {[%clk 0:02:57]}  cxd4 {[%clk 0:03:01]} 4. Nxd4 {[%clk 0:02:57]}  Nc6 {[%clk 0:03:01]} 5. Nc3 {[%clk 0:02:56]}  a6 {[%clk 0:03:00]} 6. Be3 {[%clk 0:02:54]}  Qc7 {[%clk 0:02:59]} 7. f3 {[%clk 0:02:53]}  Nf6 {[%clk 0:02:59]} 8. Qd2 {[%clk 0:02:52]}  b5 {[%clk 0:03:00]} 9. O-O-O {[%clk 0:02:52]}  Ne5 {[%clk 0:02:57]} 10. g4 {[%clk 0:02:31]}  h6 {[%clk 0:02:55]} 11. Be2 {[%clk 0:02:28]}  b4 {[%clk 0:02:55]} 12. Na4 {[%clk 0:02:27]}  d5 {[%clk 0:02:55]} 13. exd5 {[%clk 0:01:32]}  Nxd5 {[%clk 0:02:55]} 14. Bf2 {[%clk 0:01:29]}  Bd7 {[%clk 0:02:55]} 15. f4 {[%clk 0:01:24]}  Nxf4 {[%clk 0:02:49]} 16. Kb1 {[%clk 0:01:17]}  Nxe2 {[%clk 0:02:47]} 17. Qxe2 {[%clk 0:01:18]}  Bxa4 {[%clk 0:02:46]} 18. Bg3 {[%clk 0:01:14]}  Bd6 {[%clk 0:02:47]} 19. Rhe1 {[%clk 0:01:11]}  O-O {[%clk 0:02:10]} 20. Bxe5 {[%clk 0:01:09]}  Bxe5 {[%clk 0:02:10]} 21. Qxe5 {[%clk 0:01:08]}  Qxe5 {[%clk 0:02:11]} 22. Rxe5 {[%clk 0:01:08]}  Rfd8 {[%clk 0:02:12]} 23. b3 {[%clk 0:00:58]}  Bd7 {[%clk 0:02:10]} 24. Kc1 {[%clk 0:00:54]}  f6 {[%clk 0:02:06]} 25. Rc5 {[%clk 0:00:52]}  e5 {[%clk 0:02:06]} 26. Nf5 {[%clk 0:00:49]}  h5 {[%clk 0:02:04]} 27. Rcd5 {[%clk 0:00:44]}  Ra7 {[%clk 0:01:58]} 28. gxh5 {[%clk 0:00:39]}  Bxf5 {[%clk 0:01:54]} 29. Rxd8+ {[%clk 0:00:38]}  Kh7 {[%clk 0:01:55]} 30. Rb8 {[%clk 0:00:34]}  Rc7 {[%clk 0:01:52]} 31. Rd2 {[%clk 0:00:33]}  a5 {[%clk 0:01:52]} 32. Rb5 {[%clk 0:00:31]}  Kh6 {[%clk 0:01:49]} 33. Rxa5 {[%clk 0:00:29]}  Rb7 {[%clk 0:01:50]} 34. Rdd5 {[%clk 0:00:25]}  Kxh5 {[%clk 0:01:46]} 35. Rab5 {[%clk 0:00:25]}  Re7 {[%clk 0:01:46]} 36. Rxb4 {[%clk 0:00:22]}  Bh3 {[%clk 0:01:43]} 37. a4 {[%clk 0:00:20]}  g5 {[%clk 0:01:42]} 38. a5 {[%clk 0:00:19]}  e4 {[%clk 0:01:43]} 39. Kd2 {[%clk 0:00:19]}  e3+ {[%clk 0:01:42]} 40. Ke1 {[%clk 0:00:19]}  f5 {[%clk 0:01:41]} 41. a6 {[%clk 0:00:18]}  f4 {[%clk 0:01:41]} 42. Ke2 {[%clk 0:00:07]}  Bg4+ {[%clk 0:01:38]} 43. Ke1 {[%clk 0:00:07]}  f3 {[%clk 0:01:38]} 44. Rxg4 {[%clk 0:00:02]}  Kxg4 {[%clk 0:01:37]} 45. Rd4+ {[%clk 0:00:03]}  Kh3 {[%clk 0:01:37]} 46. b4 {[%clk 0:00:03]}  g4 {[%clk 0:01:37]} 47. a7 {[%clk 0:00:03]}  Rxa7 {[%clk 0:01:36]} 0-1


[Site "https://www.chess.com"]

[Event "Titled Tuesday Blitz July 05 Early 2022"]
[White "Deac, Bogdan-Daniel"]
[Black "Fedoseev, Vladimir"]
[WhiteFideId "1226380"]
[BlackFideId "24130737"]
[WhiteElo "2648"]
[BlackElo "2726"]
[Result "1-0"]
[Round "11"]
[TimeControl "180+1"]
[Date "2022.07.05"]
[WhiteClock "0:00:10"]
[BlackClock "0:00:06"]

1. d4 {[%clk 0:03:00]}  Nf6 {[%clk 0:02:53]} 2. c4 {[%clk 0:03:01]}  g6 {[%clk 0:02:52]} 3. Nc3 {[%clk 0:03:00]}  d5 {[%clk 0:02:52]} 4. cxd5 {[%clk 0:03:01]}  Nxd5 {[%clk 0:02:52]} 5. e4 {[%clk 0:03:02]}  Nxc3 {[%clk 0:02:53]} 6. bxc3 {[%clk 0:03:03]}  Bg7 {[%clk 0:02:53]} 7. Nf3 {[%clk 0:03:03]}  c5 {[%clk 0:02:53]} 8. Bb5+ {[%clk 0:03:04]}  Nc6 {[%clk 0:02:50]} 9. O-O {[%clk 0:03:04]}  O-O {[%clk 0:02:49]} 10. Bxc6 {[%clk 0:03:04]}  bxc6 {[%clk 0:02:49]} 11. Qc2 {[%clk 0:03:05]}  Bg4 {[%clk 0:02:37]} 12. Ne5 {[%clk 0:03:03]}  Bxe5 {[%clk 0:02:16]} 13. dxe5 {[%clk 0:03:04]}  Qc7 {[%clk 0:02:10]} 14. f4 {[%clk 0:02:47]}  Be6 {[%clk 0:01:54]} 15. Qa4 {[%clk 0:01:14]}  c4 {[%clk 0:01:25]} 16. Qc2 {[%clk 0:00:26]}  Kh8 {[%clk 0:01:05]} 17. Be3 {[%clk 0:00:23]}  Rad8 {[%clk 0:00:58]} 18. Rad1 {[%clk 0:00:22]}  Bg4 {[%clk 0:00:45]} 19. Rd4 {[%clk 0:00:19]}  Qa5 {[%clk 0:00:35]} 20. Rxc4 {[%clk 0:00:08]}  Be6 {[%clk 0:00:23]} 21. Rxc6 {[%clk 0:00:07]}  Rc8 {[%clk 0:00:20]} 22. Rxc8 {[%clk 0:00:07]}  Rxc8 {[%clk 0:00:21]} 23. Bd4 {[%clk 0:00:07]}  Bc4 {[%clk 0:00:15]} 24. Rf2 {[%clk 0:00:05]}  Kg8 {[%clk 0:00:15]} 25. f5 {[%clk 0:00:05]}  Rb8 {[%clk 0:00:15]} 26. h3 {[%clk 0:00:05]}  a6 {[%clk 0:00:14]} 27. e6 {[%clk 0:00:05]}  fxe6 {[%clk 0:00:14]} 28. fxg6 {[%clk 0:00:05]}  e5 {[%clk 0:00:12]} 29. gxh7+ {[%clk 0:00:05]}  Kh8 {[%clk 0:00:12]} 30. Be3 {[%clk 0:00:05]}  Qb5 {[%clk 0:00:13]} 31. Kh2 {[%clk 0:00:05]}  Bd3 {[%clk 0:00:12]} 32. Qd2 {[%clk 0:00:05]}  Bxe4 {[%clk 0:00:13]} 33. Bh6 {[%clk 0:00:05]}  Qc6 {[%clk 0:00:11]} 34. Qg5 {[%clk 0:00:06]}  Qg6 {[%clk 0:00:09]} 35. Qxe5+ {[%clk 0:00:06]}  Kxh7 {[%clk 0:00:08]} 36. Qxb8 {[%clk 0:00:06]}  Qxh6 {[%clk 0:00:08]} 37. Qf4 {[%clk 0:00:07]}  Qg6 {[%clk 0:00:04]} 38. Qf7+ {[%clk 0:00:06]}  Qg7 {[%clk 0:00:03]} 39. Qxg7+ {[%clk 0:00:06]}  Kxg7 {[%clk 0:00:04]} 40. Re2 {[%clk 0:00:06]}  Bd5 {[%clk 0:00:04]} 41. Rxe7+ {[%clk 0:00:07]}  Kf6 {[%clk 0:00:05]} 42. Ra7 {[%clk 0:00:07]}  Bc4 {[%clk 0:00:06]} 43. a4 {[%clk 0:00:07]}  Ke5 {[%clk 0:00:07]} 44. h4 {[%clk 0:00:08]}  Kf4 {[%clk 0:00:07]} 45. h5 {[%clk 0:00:07]}  Kg5 {[%clk 0:00:07]} 46. Rc7 {[%clk 0:00:08]}  Bd3 {[%clk 0:00:07]} 47. Rc5+ {[%clk 0:00:09]}  Kh4 {[%clk 0:00:06]} 48. h6 {[%clk 0:00:09]}  Kg4 {[%clk 0:00:05]} 49. Rc7 {[%clk 0:00:09]}  Kg5 {[%clk 0:00:05]} 50. h7 {[%clk 0:00:09]}  Bxh7 {[%clk 0:00:06]} 51. Rxh7 {[%clk 0:00:10]} 1-0


[Site "https://www.chess.com"]

[Event "Titled Tuesday Blitz July 05 Early 2022"]
[White "Ibarra Jerez, Jose Carlos"]
[Black "Dubov, Daniil"]
[WhiteFideId "2226332"]
[BlackFideId "24126055"]
[WhiteElo "2628"]
[BlackElo "2791"]
[Result "0-1"]
[Round "11"]
[TimeControl "180+1"]
[Date "2022.07.05"]
[WhiteClock "0:00:04"]
[BlackClock "0:00:08"]

1. e4 {[%clk 0:03:00]}  e5 {[%clk 0:02:59]} 2. Nf3 {[%clk 0:03:00]}  Nc6 {[%clk 0:02:59]} 3. Bb5 {[%clk 0:02:59]}  a6 {[%clk 0:02:59]} 4. Bxc6 {[%clk 0:02:59]}  dxc6 {[%clk 0:02:58]} 5. O-O {[%clk 0:03:00]}  Qf6 {[%clk 0:02:55]} 6. d4 {[%clk 0:03:00]}  exd4 {[%clk 0:02:55]} 7. Bg5 {[%clk 0:03:00]}  Qd6 {[%clk 0:02:54]} 8. Nxd4 {[%clk 0:02:59]}  Be7 {[%clk 0:02:53]} 9. Be3 {[%clk 0:02:57]}  Qg6 {[%clk 0:02:48]} 10. f3 {[%clk 0:02:48]}  Bd7 {[%clk 0:02:44]} 11. Nd2 {[%clk 0:02:46]}  O-O-O {[%clk 0:02:42]} 12. Qe2 {[%clk 0:02:46]}  h6 {[%clk 0:02:39]} 13. Nc4 {[%clk 0:02:41]}  Bf6 {[%clk 0:02:28]} 14. Nb3 {[%clk 0:02:30]}  Be7 {[%clk 0:02:11]} 15. Rad1 {[%clk 0:02:17]}  Nf6 {[%clk 0:01:49]} 16. Nba5 {[%clk 0:02:00]}  Qh5 {[%clk 0:01:40]} 17. e5 {[%clk 0:01:43]}  Nd5 {[%clk 0:01:36]} 18. Nxb7 {[%clk 0:01:37]}  Nxe3 {[%clk 0:01:29]} 19. Qxe3 {[%clk 0:01:33]}  Kxb7 {[%clk 0:01:22]} 20. Na5+ {[%clk 0:01:33]}  Ka8 {[%clk 0:01:22]} 21. Rxd7 {[%clk 0:01:24]}  Rxd7 {[%clk 0:01:21]} 22. Nxc6 {[%clk 0:01:23]}  Kb7 {[%clk 0:01:14]} 23. Qa7+ {[%clk 0:01:10]}  Kxc6 {[%clk 0:01:13]} 24. Qxa6+ {[%clk 0:01:09]}  Kc5 {[%clk 0:00:49]} 25. Qa5+ {[%clk 0:00:59]}  Kc6 {[%clk 0:00:45]} 26. Qa6+ {[%clk 0:00:52]}  Kd5 {[%clk 0:00:30]} 27. Rd1+ {[%clk 0:00:43]}  Kxe5 {[%clk 0:00:30]} 28. Rxd7 {[%clk 0:00:33]}  Bc5+ {[%clk 0:00:26]} 29. Kh1 {[%clk 0:00:32]}  Qg5 {[%clk 0:00:23]} 30. Qe2+ {[%clk 0:00:27]}  Kf6 {[%clk 0:00:22]} 31. g3 {[%clk 0:00:20]}  Bd6 {[%clk 0:00:17]} 32. Qc4 {[%clk 0:00:16]}  Rf8 {[%clk 0:00:15]} 33. Qe4 {[%clk 0:00:11]}  Qf5 {[%clk 0:00:12]} 34. Qc6 {[%clk 0:00:07]}  Qe6 {[%clk 0:00:09]} 35. Kg2 {[%clk 0:00:04]}  Kg6 {[%clk 0:00:07]} 36. b4 {[%clk 0:00:02]}  Bxb4 {[%clk 0:00:05]} 37. Qxe6+ {[%clk 0:00:02]}  fxe6 {[%clk 0:00:05]} 38. Rxc7 {[%clk 0:00:03]}  Ra8 {[%clk 0:00:05]} 39. Rc4 {[%clk 0:00:03]}  Be7 {[%clk 0:00:05]} 40. a4 {[%clk 0:00:03]}  Kf6 {[%clk 0:00:06]} 41. f4 {[%clk 0:00:04]}  e5 {[%clk 0:00:05]} 42. Kf3 {[%clk 0:00:02]}  exf4 {[%clk 0:00:05]} 43. Rxf4+ {[%clk 0:00:03]}  Ke6 {[%clk 0:00:05]} 44. Re4+ {[%clk 0:00:04]}  Kd6 {[%clk 0:00:05]} 45. Rd4+ {[%clk 0:00:04]}  Kc6 {[%clk 0:00:04]} 46. Kg4 {[%clk 0:00:04]}  Bc5 {[%clk 0:00:05]} 47. Rf4 {[%clk 0:00:03]}  Kd5 {[%clk 0:00:06]} 48. Kh5 {[%clk 0:00:03]}  Ra6 {[%clk 0:00:05]} 49. Rg4 {[%clk 0:00:03]}  Bd4 {[%clk 0:00:04]} 50. Rg6 {[%clk 0:00:02]}  Bf6 {[%clk 0:00:04]} 51. g4 {[%clk 0:00:02]}  Rxa4 {[%clk 0:00:03]} 52. h4 {[%clk 0:00:02]}  Rc4 {[%clk 0:00:03]} 53. g5 {[%clk 0:00:02]}  hxg5 {[%clk 0:00:03]} 54. hxg5 {[%clk 0:00:03]}  Bb2 {[%clk 0:00:04]} 55. Rb6 {[%clk 0:00:03]}  Rxc2 {[%clk 0:00:04]} 56. Kg6 {[%clk 0:00:03]}  Rg2 {[%clk 0:00:03]} 57. Rb7 {[%clk 0:00:04]}  Bd4 {[%clk 0:00:03]} 58. Rd7+ {[%clk 0:00:03]}  Ke4 {[%clk 0:00:03]} 59. Re7+ {[%clk 0:00:03]}  Be5 {[%clk 0:00:04]} 60. Re6 {[%clk 0:00:03]}  Rg1 {[%clk 0:00:04]} 61. Ra6 {[%clk 0:00:02]}  Kd5 {[%clk 0:00:04]} 62. Ra5+ {[%clk 0:00:03]}  Kd6 {[%clk 0:00:04]} 63. Ra6+ {[%clk 0:00:03]}  Kc5 {[%clk 0:00:05]} 64. Ra5+ {[%clk 0:00:04]}  Kd4 {[%clk 0:00:05]} 65. Ra4+ {[%clk 0:00:04]}  Kd3 {[%clk 0:00:06]} 66. Kf5 {[%clk 0:00:04]}  Bc3 {[%clk 0:00:05]} 67. Ra7 {[%clk 0:00:04]}  Rf1+ {[%clk 0:00:04]} 68. Kg6 {[%clk 0:00:04]}  Rb1 {[%clk 0:00:05]} 69. Rxg7 {[%clk 0:00:04]}  Rb6+ {[%clk 0:00:05]} 70. Kh7 {[%clk 0:00:04]}  Bxg7 {[%clk 0:00:06]} 71. Kxg7 {[%clk 0:00:04]}  Ke4 {[%clk 0:00:06]} 72. g6 {[%clk 0:00:05]}  Kf5 {[%clk 0:00:07]} 73. Kh8 {[%clk 0:00:04]}  Rxg6 {[%clk 0:00:08]} 0-1


[Site "https://www.chess.com"]